fUST/lending_fUST_20241025
["ID","MTS","AMOUNT","RATE_DAILY","PERIOD"]
[340809607,1729865965589,-151.0,0.00036082,120]
[340809608,1729865965616,-150.0,0.0003626,120]
[340809609,1729865965808,-938.41,0.000363,30]
[340809610,1729865965834,-1000.0,0.000368,30]
[340809611,1729865965859,-3500.0,0.00037,120]
[340809612,1729865965883,-151.0,0.00037096,120]
[340809613,1729865965911,-1000.0,0.000378,60]
[340809614,1729865965941,-500.0,0.00038,120]
[340809615,1729865965966,-6952.0,0.00038,30]
[340809616,1729865965991,-151.0,0.0003811,120]
[340809617,1729865966016,-500.0,0.00038356,120]
[340809618,1729865966040,-500.0,0.00038356,120]
[340809619,1729865966070,-1000.0,0.00038356,120]
[340809620,1729865966097,-500.0,0.00038356,120]
[340809621,1729865966122,-500.0,0.00038356,120]
[340809622,1729865966147,-193.671556,0.00038356,120]
[340809623,1729865966171,-198.0,0.00038356,60]
[340809624,1729865966196,-3298.14524758,0.00038484,120]
[340809625,1729865966221,-151.0,0.00038548,120]
[340809626,1729865966246,-1000.0,0.0003863,120]
[340809627,1729865966271,-3047.46745554,0.0003888,120]
[340809628,1729865966295,-1000.0,0.00038904,120]
[340809629,1729865966319,-50000.0,0.00039,30]
[340809630,1729865966343,-2500.0,0.00039,120]
[340809631,1729865966367,-20000.0,0.00039,30]
[340809632,1729865966392,-180.33,0.00039,30]
[340809633,1729865966418,-151.0,0.00039123,120]
[340809634,1729865966443,-1000.0,0.00039178,120]
[340809635,1729865966468,-1000.0,0.00039452,120]
[340809636,1729865966492,-325.92955732,0.00039726,120]
[340809637,1729865966517,-1522.10071135,0.0003988,30]
[340809638,1729865966541,-3000.0,0.000399,120]
[340809639,1729865966566,-151.0,0.00039973,120]
[340809640,1729865966591,-10500.0,0.0003999,90]
[340809641,1729865966616,-6291.0048664,0.0004,120]
[340809642,1729865966642,-500.0,0.0004,120]
[340809643,1729865966667,-5298.13873231,0.0004,60]
[340809644,1729865966696,-3461.17496684,0.0004,120]
[340809645,1729865966720,-169.3912527,0.0004,120]
[340809646,1729865966744,-500.0,0.0004,30]
[340809647,1729865966769,-261.11280896,0.0004,120]
[340809648,1729865966793,-2096.91968288,0.0004,90]
[340809649,1729865966817,-4998.20081528,0.0004,30]
[340809650,1729865966840,-91123.86322765,0.0004,30]
[340809651,1729865966864,-1388.31747686,0.0004,30]
[340809652,1729865966888,-1000.0,0.0004,120]
[340809653,1729865966911,-3000.0,0.0004,120]
[340809654,1729865966939,-218.46340877,0.0004,60]
[340809655,1729865966963,-350.71563721,0.0004,120]
[340809656,1729865966989,-151.0,0.00040137,120]
[340809657,1729865967014,-155.071,0.0004016,120]
[340809658,1729865967039,-155.2990029,0.000403,120]
[340809659,1729865967065,-600.73507164,0.00040714,31]
[340809660,1729865967092,-500.0,0.00041,120]
[340809661,1729865967116,-5462.7691893,0.00041,30]
[340809662,1729865967141,-5047.57,0.00041,90]
[340809663,1729865967169,-152.0,0.00041041,31]
[340809664,1729865967193,-3000.0,0.00041095,30]
[340809665,1729865967218,-2544.47550963,0.00041095,30]
[340809666,1729865967244,-505.01748554,0.00041095,90]
[340809667,1729865967270,-1505.39110953,0.00041095,30]
[340809668,1729865967294,-500.0,0.00041095,30]
[340809669,1729865967321,-230.27,0.00041096,30]
[340809670,1729865967348,-151.0,0.00041151,120]
[340809671,1729865967374,-151.0,0.00041397,120]
[340809672,1729865967399,-191.0,0.000418,120]
[340809673,1729865967424,-887.03227806,0.000419,120]
[340809674,1729865967449,-300.0,0.00041912,120]
[340809675,1729865967473,-3265.03920025,0.00041914,120]
[340809676,1729865967499,-152.0,0.00041973,31]
[340809677,1729865967526,-2000.0,0.00042,120]
[340809678,1729865967552,-2000.0,0.00042,120]
[340809679,1729865967577,-500.0,0.00042,120]
[340809680,1729865967602,-3000.0,0.00042,120]
[340809681,1729865967627,-4347245.18473485,0.00042,30]
[340809682,1729865976272,-818607.67589816,0.00042,30]
[340809683,1729865976298,-1481.48211054,0.00042,120]
[340809684,1729865976323,-4179910.8419913,0.00042,30]
[340809686,1729866036011,-500.0,0.0003652,60]
[340809687,1729866036040,-500.0,0.00037616,60]
[340809688,1729866036070,-500.0,0.00038712,60]
[340809689,1729866036098,-500.0,0.00039808,60]
[340809690,1729866036128,-500.0,0.00040904,60]
[340809691,1729866036157,-471.88154091,0.0004179,44]
[340809692,1729866036184,-807592.06541589,0.00042,30]
[340809693,1729866036210,-1841.15,0.00042,30]
[340809694,1729866036239,-5452.02,0.00042,30]
[340809695,1729866036264,-160.0,0.00042,120]
[340809696,1729866036290,-191.92258484,0.00042,120]
[340809697,1729866036316,-160.0,0.00042,120]
[340809698,1729866036341,-160.0,0.00042,120]
[340809699,1729866036368,-160.0,0.00042,120]
[340809700,1729866036395,-274.78570818,0.00042,120]
[340809701,1729866036420,-500.0,0.00042,60]
[340809702,1729866036445,-151.0,0.00042164,120]
[340809703,1729866036471,-1707.31653012,0.000424,120]
[340809704,1729866036497,-200.0,0.000425,120]
[340809705,1729866036523,-151.0,0.00042822,120]
[340809706,1729866036548,-160.63850583,0.00042898,120]
[340809707,1729866036575,-234.34151868,0.000429,120]
[340809708,1729866036603,-152.0,0.00042904,31]
[340809709,1729866036630,-5347.41558877,0.00043,120]
[340809710,1729866036657,-4146.3408625,0.00043,120]
[340809711,1729866036681,-5069.43,0.00043,30]
[340809712,1729866036708,-500.0,0.00043,120]
[340809713,1729866036734,-4000.0,0.00043,120]
[340809714,1729866036759,-309.6415853,0.00043,120]
[340809715,1729866036785,-10889.14725228,0.00043,120]
[340809716,1729866036811,-313.91905007,0.00043,120]
[340809717,1729866036835,-150.0,0.00043,60]
[340809718,1729866036860,-500.0,0.00043096,60]
[340809719,1729866036887,-151.0,0.00043178,120]
[340809720,1729866036913,-500.0,0.00043835,30]
[340809721,1729866048942,324.910733,0.00042,120]
[340809770,1729866635211,5523.61,0.00019,15]
[340809771,1729866635657,-677.0,0.00013588,2]
[340809787,1729866638291,-817.47098682,0.00013588,2]
[340809789,1729866638305,-1993.10838849,0.00013588,2]
[340809791,1729866638315,-156.99361092,0.00013598,2]
[340809793,1729866638324,-914.52353104,0.00013598,2]
[340809795,1729866638334,-156.9936109,0.00013667,2]
[340809797,1729866638345,-500.0,0.00013673,2]
[340809799,1729866638354,-500.0,0.00013673,2]
[340809801,1729866638363,-300.0,0.00013687,2]
[340809803,1729866638373,-181.89166018,0.00013688,2]
[340809805,1729866638382,-7477.17623011,0.00013688,2]
[340809807,1729866638394,-3669.7805332,0.00013688,2]
[340809814,1729866638448,-3310.84238111,0.00013688,2]
[340809821,1729866638531,-860.95986895,0.00013688,2]
[340809994,1729866643219,-2249.60687203,0.00013688,2]
[340809995,1729866643232,-20880.46066148,0.00013688,2]
[340809996,1729866643245,-4170.80457249,0.00013688,2]
[340810016,1729866643768,-5270.01570441,0.00013688,2]
[340810019,1729866643780,-27447.67231202,0.00013688,2]
[340810021,1729866643792,-85954.9715747,0.00013688,2]
[340810023,1729866643801,-500.0,0.00013698,2]
[340810025,1729866643811,-554.79115601,0.00013698,2]
[340810027,1729866643821,-500.0,0.00013698,2]
[340810028,1729866643831,-500.0,0.00013698,2]
[340810030,1729866643842,-657.0,0.00013698,2]
[340810032,1729866643853,-500.0,0.00013698,2]
[340810034,1729866643863,-500.0,0.00013698,2]
[340810036,1729866643873,-500.0,0.00013698,2]
[340810038,1729866643882,-282.95953521,0.00013698,2]
[340810040,1729866643892,-707.61,0.00013698,2]
[340810042,1729866643901,-546.49,0.00013698,2]
[340810044,1729866643911,-500.0,0.00013698,2]
[340810046,1729866643921,-500.0,0.00013698,2]
[340810048,1729866643931,-500.0,0.00013698,2]
[340810050,1729866643940,-500.0,0.00013698,2]
[340810052,1729866643950,-500.0,0.00013698,2]
[340810054,1729866643959,-500.0,0.00013698,2]
[340810056,1729866643969,-500.0,0.00013698,2]
[340810058,1729866643979,-500.0,0.00013698,2]
[340810060,1729866643993,-500.0,0.00013698,2]
[340810062,1729866644003,-515.13,0.00013698,2]
[340810064,1729866644013,-500.0,0.00013698,2]
[340810066,1729866644023,-500.0,0.00013698,2]
[340810068,1729866644033,-582.05,0.00013698,2]
[340810070,1729866644045,-500.0,0.00013698,2]
[340810072,1729866644055,-500.0,0.00013698,2]
[340810074,1729866644065,-645.91,0.00013698,2]
[340810075,1729866644075,-512.47,0.00013698,2]
[340810077,1729866644084,-215.874,0.00013698,2]
[340810079,1729866644094,-500.0,0.00013698,2]
[340810081,1729866644104,-405.55871076,0.00013698,2]
[340810083,1729866644113,-500.0,0.00013698,2]
[340810085,1729866644123,-500.0,0.00013698,2]
[340810087,1729866644132,-505.03,0.00013698,2]
[340810089,1729866644142,-502.38883243,0.00013698,2]
[340810091,1729866644152,-500.0,0.00013698,2]
[340810093,1729866644163,-633.02,0.00013698,2]
[340810095,1729866644172,-500.0,0.00013698,2]
[340810097,1729866644182,-600.3559158,0.00013698,2]
[340810099,1729866644192,-500.0,0.00013698,2]
[340810101,1729866644202,-500.0,0.00013698,2]
[340810103,1729866644212,-563.39,0.00013698,2]
[340810106,1729866644223,-594.86,0.00013698,2]
[340810108,1729866644233,-665.71,0.00013698,2]
[340810110,1729866644250,-500.0,0.00013698,2]
[340810112,1729866644260,-500.0,0.00013698,2]
[340810114,1729866644270,-500.0,0.00013698,2]
[340810115,1729866644279,-500.0,0.00013698,2]
[340810117,1729866644289,-500.0,0.00013698,2]
[340810119,1729866644302,-500.0,0.00013698,2]
[340810121,1729866644312,-500.0,0.00013698,2]
[340810123,1729866644322,-500.0,0.00013698,2]
[340810125,1729866644331,-500.0,0.00013698,2]
[340810127,1729866644342,-500.0,0.00013698,2]
[340810128,1729866644352,-163.93496685,0.00013698,2]
[340810129,1729866644363,-500.0,0.00013698,2]
[340810130,1729866644372,-500.0,0.00013698,2]
[340810131,1729866644382,-500.0,0.00013698,2]
[340810132,1729866644392,-267.19515417,0.00013698,2]
[340810133,1729866644402,-500.0,0.00013698,2]
[340810134,1729866644412,-500.0,0.00013698,2]
[340810135,1729866644421,-500.0,0.00013698,2]
[340810136,1729866644431,-749.28,0.00013698,2]
[340810137,1729866644441,-500.0,0.00013698,2]
[340810138,1729866644452,-802.92,0.00013698,2]
[340810139,1729866644461,-919.68,0.00013698,2]
[340810140,1729866644472,-500.0,0.00013698,2]
[340810141,1729866644481,-500.0,0.00013698,2]
[340810142,1729866644493,-500.0,0.00013698,2]
[340810143,1729866644504,-500.0,0.00013698,2]
[340810144,1729866644514,-556.91880282,0.00013698,2]
[340810145,1729866644525,-500.0,0.00013698,2]
[340810146,1729866644535,-677.05,0.00013698,2]
[340810147,1729866644545,-500.0,0.00013698,2]
[340810148,1729866644556,-500.0,0.00013698,2]
[340810150,1729866644566,-1550.62,0.00013698,2]
[340810152,1729866644577,-500.0,0.00013698,2]
[340810154,1729866644587,-500.0,0.00013698,2]
[340810156,1729866644598,-503.27,0.00013698,2]
[340810158,1729866644608,-971.34,0.00013698,2]
[340810160,1729866644619,-500.0,0.00013698,2]
[340810161,1729866644628,-878.63,0.00013698,2]
[340810163,1729866644640,-538.86,0.00013698,2]
[340810165,1729866644650,-500.0,0.00013698,2]
[340810167,1729866644660,-500.0,0.00013698,2]
[340810170,1729866644670,-500.0,0.00013698,2]
[340810172,1729866644680,-500.0,0.00013698,2]
[340810173,1729866644690,-517.94,0.00013698,2]
[340810175,1729866644700,-763.66,0.00013698,2]
[340810178,1729866644710,-500.0,0.00013698,2]
[340810179,1729866644720,-647.38,0.00013698,2]
[340810182,1729866644730,-497.85515958,0.00013698,2]
[340810184,1729866644743,-500.0,0.00013698,2]
[340810186,1729866644762,-500.0,0.00013698,2]
[340810188,1729866644777,-500.0,0.00013698,2]
[340810190,1729866644787,-500.0,0.00013698,2]
[340810192,1729866644798,-905.98,0.00013698,2]
[340810194,1729866644808,-929.53,0.00013698,2]
[340810196,1729866644819,-943.74,0.00013698,2]
[340810198,1729866644830,-622.64,0.00013698,2]
[340810200,1729866644841,-1868.15,0.00013698,2]
[340810202,1729866644851,-1614.97,0.00013698,2]
[340810204,1729866644862,-1763.8,0.00013698,2]
[340810206,1729866644873,-727.38,0.00013698,2]
[340810208,1729866644884,-500.0,0.00013698,2]
[340810210,1729866644894,-500.0,0.00013698,2]
[340810212,1729866644905,-670.75,0.00013698,2]
[340810214,1729866644917,-879.56,0.00013698,2]
[340810216,1729866644927,-500.0,0.00013698,2]
[340810218,1729866644937,-500.0,0.00013698,2]
[340810220,1729866644950,-500.0,0.00013698,2]
[340810222,1729866644962,-500.0,0.00013698,2]
[340810224,1729866644974,-500.0,0.00013698,2]
[340810226,1729866644985,-500.0,0.00013698,2]
[340810227,1729866644997,-236.84178988,0.00013698,2]
[340810228,1729866645008,-857.33,0.00013698,2]
[340810229,1729866645019,-500.0,0.00013698,2]
[340810230,1729866645030,-622.19,0.00013698,2]
[340810231,1729866645040,-500.0,0.00013698,2]
[340810232,1729866645051,-596.02,0.00013698,2]
[340810233,1729866645062,-500.0,0.00013698,2]
[340810234,1729866645073,-892.11,0.00013698,2]
[340810235,1729866645083,-559.69,0.00013698,2]
[340810236,1729866645093,-725.96,0.00013698,2]
[340810237,1729866645103,-506.85,0.00013698,2]
[340810238,1729866645114,-500.0,0.00013698,2]
[340810239,1729866645125,-500.0,0.00013698,2]
[340810240,1729866645135,-977.85,0.00013698,2]
[340810241,1729866645146,-500.0,0.00013698,2]
[340810243,1729866645158,-649.31,0.00013698,2]
[340810245,1729866645168,-596.31,0.00013698,2]
[340810247,1729866645179,-566.99,0.00013698,2]
[340810249,1729866645189,-500.0,0.00013698,2]
[340810251,1729866645200,-916.53,0.00013698,2]
[340810253,1729866645211,-570.79,0.00013698,2]
[340810254,1729866645222,-508.89288883,0.00013698,2]
[340810256,1729866645231,-616.6,0.00013698,2]
[340810258,1729866645245,-1412.02,0.00013698,2]
[340810260,1729866645256,-500.0,0.00013698,2]
[340810263,1729866645266,-2800.32,0.00013698,2]
[340810265,1729866645277,-1602.76,0.00013698,2]
[340810266,1729866645287,-500.0,0.00013698,2]
[340810268,1729866645302,-500.0,0.00013698,2]
[340810270,1729866645313,-3103.15,0.00013698,2]
[340810272,1729866645324,-500.0,0.00013698,2]
[340810274,1729866645335,-500.0,0.00013698,2]
[340810276,1729866645346,-561.29,0.00013698,2]
[340810278,1729866645356,-500.0,0.00013698,2]
[340810280,1729866645367,-500.0,0.00013698,2]
[340810283,1729866645383,-500.0,0.00013698,2]
[340810285,1729866645393,-1422.39,0.00013698,2]
[340810287,1729866645404,-500.0,0.00013698,2]
[340810289,1729866645414,-500.0,0.00013698,2]
[340810291,1729866645424,-781.11,0.00013698,2]
[340810293,1729866645435,-500.0,0.00013698,2]
[340810295,1729866645446,-657.58,0.00013698,2]
[340810297,1729866645456,-1441.52,0.00013698,2]
[340810299,1729866645466,-959.19,0.00013698,2]
[340810301,1729866645477,-557.53,0.00013698,2]
[340810303,1729866645489,-1009.53,0.00013698,2]
[340810305,1729866645501,-500.0,0.00013698,2]
[340810307,1729866645511,-807.15,0.00013698,2]
[340810309,1729866645521,-500.0,0.00013698,2]
[340810311,1729866645532,-500.0,0.00013698,2]
[340810313,1729866645543,-18958.8,0.00013698,2]
[340810315,1729866645553,-500.0,0.00013698,2]
[340810317,1729866645564,-500.0,0.00013698,2]
[340810319,1729866645574,-707.27,0.00013698,2]
[340810321,1729866645585,-674.28,0.00013698,2]
[340810323,1729866645595,-897.4,0.00013698,2]
[340810325,1729866645606,-500.0,0.00013698,2]
[340810327,1729866645618,-500.0,0.00013698,2]
[340810329,1729866645629,-955.3,0.00013698,2]
[340810331,1729866645639,-589.2,0.00013698,2]
[340810333,1729866645651,-914.95,0.00013698,2]
[340810335,1729866645662,-306.55509186,0.00013698,2]
[340810337,1729866645672,-3380.99,0.00013698,2]
[340810339,1729866645683,-500.0,0.00013698,2]
[340810340,1729866645694,-357.01136337,0.00013698,2]
[340810342,1729866645705,-879.1,0.00013698,2]
[340810343,1729866645715,-500.0,0.00013698,2]
[340810345,1729866645726,-734.15,0.00013698,2]
[340810347,1729866645740,-239.30540907,0.00013698,2]
[340810349,1729866645753,-500.0,0.00013698,2]
[340810351,1729866645764,-3277.92,0.00013698,2]
[340810353,1729866645775,-500.0,0.00013698,2]
[340810355,1729866645785,-500.0,0.00013698,2]
[340810357,1729866645796,-505.17078555,0.00013698,2]
[340810359,1729866645806,-768.42,0.00013698,2]
[340810361,1729866645816,-500.0,0.00013698,2]
[340810363,1729866645827,-500.0,0.00013698,2]
[340810365,1729866645838,-828.11,0.00013698,2]
[340810367,1729866645848,-500.0,0.00013698,2]
[340810369,1729866645858,-500.0,0.00013698,2]
[340810371,1729866645868,-500.0,0.00013698,2]
[340810372,1729866645879,-3238.34,0.00013698,2]
[340810373,1729866645889,-500.0,0.00013698,2]
[340810374,1729866645899,-1363.0,0.00013698,2]
[340810375,1729866645910,-500.0,0.00013698,2]
[340810376,1729866645919,-500.0,0.00013698,2]
[340810377,1729866645930,-1376.47,0.00013698,2]
[340810378,1729866645941,-500.0,0.00013698,2]
[340810379,1729866645951,-500.0,0.00013698,2]
[340810380,1729866645961,-962.32,0.00013698,2]
[340810381,1729866645971,-500.0,0.00013698,2]
[340810382,1729866645981,-894.82,0.00013698,2]
[340810383,1729866645994,-500.0,0.00013698,2]
[340810384,1729866646008,-500.0,0.00013698,2]
[340810385,1729866646018,-500.0,0.00013698,2]
[340810386,1729866646028,-1297.15,0.00013698,2]
[340810387,1729866646037,-500.0,0.00013698,2]
[340810388,1729866646047,-500.0,0.00013698,2]
[340810389,1729866646056,-500.0,0.00013698,2]
[340810390,1729866646066,-571.68,0.00013698,2]
[340810391,1729866646078,-1500.0,0.00013698,2]
[340810392,1729866646088,-500.0,0.00013698,2]
[340810393,1729866646098,-503.82564163,0.00013698,2]
[340810394,1729866646108,-779.49,0.00013698,2]
[340810395,1729866646119,-1226.61,0.00013698,2]
[340810396,1729866646129,-500.0,0.00013698,2]
[340810397,1729866646139,-500.0,0.00013698,2]
[340810399,1729866646150,-641.47,0.00013698,2]
[340810401,1729866646161,-500.0,0.00013698,2]
[340810403,1729866646171,-500.0,0.00013698,2]
[340810405,1729866646181,-500.0,0.00013698,2]
[340810407,1729866646192,-2176.41,0.00013698,2]
[340810409,1729866646202,-500.0,0.00013698,2]
[340810411,1729866646212,-618.09,0.00013698,2]
[340810413,1729866646223,-500.0,0.00013698,2]
[340810414,1729866646232,-5322.38,0.00013698,2]
[340810416,1729866646245,-1018.24,0.00013698,2]
[340810418,1729866646257,-500.0,0.00013698,2]
[340810419,1729866646267,-500.0,0.00013698,2]
[340810420,1729866646277,-500.0,0.00013698,2]
[340810421,1729866646286,-990.12,0.00013698,2]
[340810422,1729866646300,-637.45,0.00013698,2]
[340810423,1729866646310,-1576.32,0.00013698,2]
[340810424,1729866646320,-6465.96,0.00013698,2]
[340810425,1729866646330,-696.44,0.00013698,2]
[340810426,1729866646342,-500.0,0.00013698,2]
[340810427,1729866646353,-500.0,0.00013698,2]
[340810428,1729866646363,-499.99999999,0.00013698,2]
[340810429,1729866646376,-10520.43,0.00013698,2]
[340810430,1729866646386,-500.0,0.00013698,2]
[340810431,1729866646395,-2851.47,0.00013698,2]
[340810432,1729866646405,-3003.96,0.00013698,2]
[340810433,1729866646415,-491.05727335,0.00013698,2]
[340810434,1729866646426,-500.0,0.00013698,2]
[340810435,1729866646436,-764.62,0.00013698,2]
[340810436,1729866646446,-3867.86,0.00013698,2]
[340810437,1729866646456,-961.7,0.00013698,2]
[340810438,1729866646466,-500.0,0.00013698,2]
[340810439,1729866646476,-1173.16,0.00013698,2]
[340810440,1729866646490,-500.0,0.00013698,2]
[340810441,1729866646499,-1227.75,0.00013698,2]
[340810442,1729866646509,-562.0,0.00013698,2]
[340810443,1729866646520,-500.0,0.00013698,2]
[340810444,1729866646530,-761.75,0.00013698,2]
[340810445,1729866646541,-500.0,0.00013698,2]
[340810446,1729866646551,-500.0,0.00013698,2]
[340810447,1729866646561,-500.0,0.00013698,2]
[340810448,1729866646572,-624.21,0.00013698,2]
[340810449,1729866646582,-1030.63,0.00013698,2]
[340810450,1729866646593,-6105.337922,0.00013699,2]
[340810451,1729866646603,-1490.819611,0.00013699,2]
[340810452,1729866646613,-156.9936109,0.00013735,2]
[340810453,1729866646624,-156.9936109,0.00013804,2]
[340810454,1729866646634,-156.9936109,0.00013872,2]
[340810455,1729866646644,-18834.329784,0.00013942,2]
[340810456,1729866646656,-21488.7428937,0.00013942,2]
[340810457,1729866646667,-18834.329784,0.00013952,2]
[340810458,1729866646677,-21488.7428937,0.00013952,2]
[340810459,1729866646687,-75337.3191358,0.00013962,2]
[340810460,1729866646698,-85954.9715747,0.00013962,2]
[340810461,1729866646708,-657.0,0.00013972,2]
[340810463,1729866646719,-500.0,0.00013972,2]
[340810465,1729866646729,-500.0,0.00013972,2]
[340810467,1729866646744,-500.0,0.00013972,2]
[340810469,1729866646757,-707.61,0.00013972,2]
[340810471,1729866646768,-546.49,0.00013972,2]
[340810473,1729866646778,-341.31264297,0.00013972,2]
[340810475,1729866646788,-500.0,0.00013972,2]
[340810477,1729866646798,-500.0,0.00013972,2]
[340810479,1729866646808,-500.0,0.00013972,2]
[340810481,1729866646818,-515.13,0.00013972,2]
[340810483,1729866646828,-582.05,0.00013972,2]
[340810485,1729866646837,-645.91,0.00013972,2]
[340810488,1729866646848,-512.47,0.00013972,2]
[340810490,1729866646858,-500.0,0.00013972,2]
[340810492,1729866646868,-500.0,0.00013972,2]
[340810494,1729866646878,-505.03,0.00013972,2]
[340810496,1729866646888,-633.02,0.00013972,2]
[340810497,1729866646898,-500.0,0.00013972,2]
[340810499,1729866646909,-500.0,0.00013972,2]
[340810502,1729866646924,-500.0,0.00013972,2]
[340810505,1729866646939,-563.39,0.00013972,2]
[340810507,1729866646950,-594.86,0.00013972,2]
[340810509,1729866646962,-665.71,0.00013972,2]
[340810511,1729866646972,-500.0,0.00013972,2]
[340810513,1729866646982,-749.28,0.00013972,2]
[340810515,1729866646998,-802.92,0.00013972,2]
[340810517,1729866647008,-919.68,0.00013972,2]
[340810519,1729866647019,-500.0,0.00013972,2]
[340810521,1729866647029,-500.0,0.00013972,2]
[340810523,1729866647039,-500.0,0.00013972,2]
[340810525,1729866647049,-500.0,0.00013972,2]
[340810527,1729866647059,-500.0,0.00013972,2]
[340810529,1729866647070,-677.05,0.00013972,2]
[340810531,1729866647080,-500.0,0.00013972,2]
[340810533,1729866647090,-500.0,0.00013972,2]
[340810535,1729866647100,-1550.62,0.00013972,2]
[340810537,1729866647110,-500.0,0.00013972,2]
[340810539,1729866647121,-500.0,0.00013972,2]
[340810542,1729866647132,-503.27,0.00013972,2]
[340810544,1729866647143,-971.34,0.00013972,2]
[340810546,1729866647153,-500.0,0.00013972,2]
[340810548,1729866647164,-878.63,0.00013972,2]
[340810550,1729866647174,-538.86,0.00013972,2]
[340810552,1729866647184,-500.0,0.00013972,2]
[340810554,1729866647194,-500.0,0.00013972,2]
[340810556,1729866647205,-500.0,0.00013972,2]
[340810558,1729866647215,-517.94,0.00013972,2]
[340810560,1729866647226,-763.66,0.00013972,2]
[340810562,1729866647239,-500.0,0.00013972,2]
[340810564,1729866647249,-647.38,0.00013972,2]
[340810566,1729866647259,-500.0,0.00013972,2]
[340810568,1729866647270,-500.0,0.00013972,2]
[340810570,1729866647280,-500.0,0.00013972,2]
[340810572,1729866647290,-905.98,0.00013972,2]
[340810574,1729866647301,-929.53,0.00013972,2]
[340810576,1729866647311,-943.74,0.00013972,2]
[340810578,1729866647321,-622.64,0.00013972,2]
[340810580,1729866647331,-1868.15,0.00013972,2]
[340810582,1729866647342,-1614.97,0.00013972,2]
[340810584,1729866647351,-1763.8,0.00013972,2]
[340810586,1729866647361,-727.38,0.00013972,2]
[340810588,1729866647371,-500.0,0.00013972,2]
[340810590,1729866647381,-500.0,0.00013972,2]
[340810592,1729866647391,-670.75,0.00013972,2]
[340810594,1729866647401,-879.56,0.00013972,2]
[340810596,1729866647411,-500.0,0.00013972,2]
[340810598,1729866647421,-500.0,0.00013972,2]
[340810600,1729866647432,-500.0,0.00013972,2]
[340810602,1729866647443,-500.0,0.00013972,2]
[340810604,1729866647453,-500.0,0.00013972,2]
[340810606,1729866647463,-857.33,0.00013972,2]
[340810609,1729866647474,-500.0,0.00013972,2]
[340810611,1729866647484,-622.19,0.00013972,2]
[340810613,1729866647498,-500.0,0.00013972,2]
[340810615,1729866647508,-596.02,0.00013972,2]
[340810617,1729866647518,-500.0,0.00013972,2]
[340810618,1729866647528,-892.11,0.00013972,2]
[340810621,1729866647540,-559.69,0.00013972,2]
[340810623,1729866647550,-725.96,0.00013972,2]
[340810625,1729866647561,-506.85,0.00013972,2]
[340810627,1729866647572,-500.0,0.00013972,2]
[340810629,1729866647582,-500.0,0.00013972,2]
[340810631,1729866647592,-977.85,0.00013972,2]
[340810632,1729866647602,-500.0,0.00013972,2]
[340810633,1729866647611,-649.31,0.00013972,2]
[340810634,1729866647622,-596.31,0.00013972,2]
[340810635,1729866647632,-566.99,0.00013972,2]
[340810636,1729866647642,-500.0,0.00013972,2]
[340810637,1729866647652,-916.53,0.00013972,2]
[340810638,1729866647662,-570.79,0.00013972,2]